[Event "Live Chess"]
[Site "Chess.com"]
[Date "2023.05.20"]
[Round "-"]
[White "wot-not"]
[Black "KING_BOBBB"]
[Result "1-0"]
[WhiteElo "1452"]
[BlackElo "521"]
[TimeControl "300"]
[EndTime "9:14:06 PDT"]
[Termination "wot-not won by resignation"]

1. e4 {[%clk 0:04:52.8]} 1... d5 {[%clk 0:04:59]} 2. e5 {[%clk 0:04:51.8]} 2...
f6 {[%clk 0:04:58]} 3. f4 {[%clk 0:04:51.6]} 3... g5 {[%clk 0:04:56]} 4. Nf3
{[%clk 0:04:50.2]} 4... gxf4 {[%clk 0:04:54.6]} 5. d4 {[%clk 0:04:49.5]} 5...
Nc6 {[%clk 0:04:49.2]} 6. Bxf4 {[%clk 0:04:46.3]} 6... Bg4 {[%clk 0:04:44.4]} 7.
c3 {[%clk 0:04:39]} 7... fxe5 {[%clk 0:04:39.1]} 8. Bxe5 {[%clk 0:04:36]} 8...
Bxf3 {[%clk 0:04:37.4]} 9. Qxf3 {[%clk 0:04:34]} 9... Nxe5 {[%clk 0:04:36.5]}
10. dxe5 {[%clk 0:04:29.8]} 10... d4 {[%clk 0:04:32.2]} 11. Bc4 {[%clk
0:04:26.6]} 11... Nh6 {[%clk 0:04:17.8]} 12. O-O {[%clk 0:04:23.4]} 12... dxc3
{[%clk 0:04:03.4]} 13. Nxc3 {[%clk 0:04:21.9]} 13... Qd4+ {[%clk 0:04:02.3]} 14.
Kh1 {[%clk 0:04:18]} 14... Qxc4 {[%clk 0:04:01.3]} 15. Rad1 {[%clk 0:04:14.9]}
15... Rd8 {[%clk 0:03:48]} 16. Qh5+ {[%clk 0:04:13.3]} 16... Nf7 {[%clk
0:03:42.7]} 17. Rxd8+ {[%clk 0:04:08]} 17... Kxd8 {[%clk 0:03:40.8]} 18. Qxf7
{[%clk 0:04:07.3]} 18... Rg8 {[%clk 0:03:35.3]} 19. Qxc4 {[%clk 0:04:05.9]}
19... b5 {[%clk 0:03:31.8]} 20. Qxg8 {[%clk 0:04:02.7]} 1-0

[Event "Live Chess"]
[Site "Chess.com"]
[Date "2023.05.20"]
[Round "-"]
[White "lightningorderyt"]
[Black "JormaIbo"]
[Result "1-0"]
[WhiteElo "487"]
[BlackElo "428"]
[TimeControl "300"]
[EndTime "9:14:08 PDT"]
[Termination "lightningorderyt won on time"]

1. d4 {[%clk 0:04:52]} 1... d5 {[%clk 0:04:58.7]} 2. c4 {[%clk 0:04:49.9]} 2...
e6 {[%clk 0:04:57.8]} 3. Nc3 {[%clk 0:04:47.9]} 3... Nf6 {[%clk 0:04:54.7]} 4.
Nf3 {[%clk 0:04:45.9]} 4... Bb4 {[%clk 0:04:52.5]} 5. Bd2 {[%clk 0:04:42]} 5...
O-O {[%clk 0:04:38.6]} 6. a3 {[%clk 0:04:35.8]} 6... Be7 {[%clk 0:04:31.5]} 7.
g3 {[%clk 0:04:26.2]} 7... c5 {[%clk 0:03:57.2]} 8. e3 {[%clk 0:04:14.9]} 8...
cxd4 {[%clk 0:03:47.1]} 9. exd4 {[%clk 0:04:13.3]} 9... Nc6 {[%clk 0:03:31]} 10.
Be2 {[%clk 0:04:01.1]} 10... Ne4 {[%clk 0:03:22.9]} 11. Be3 {[%clk 0:03:45.3]}
11... Nxc3 {[%clk 0:02:57.3]} 12. bxc3 {[%clk 0:03:43.5]} 12... Qa5 {[%clk
0:02:38]} 13. cxd5 {[%clk 0:03:28.9]} 13... exd5 {[%clk 0:02:30.6]} 14. Bd2
{[%clk 0:03:19.8]} 14... Bh3 {[%clk 0:02:20.3]} 15. c4 {[%clk 0:03:08.3]} 15...
Qd8 {[%clk 0:02:12]} 16. Ng1 {[%clk 0:02:59.8]} 16... Bg2 {[%clk 0:02:01.9]} 17.
Bf3 {[%clk 0:02:50]} 17... Bxh1 {[%clk 0:01:57.4]} 18. Bxh1 {[%clk 0:02:48.5]}
18... dxc4 {[%clk 0:01:50]} 19. Be3 {[%clk 0:02:39.9]} 19... Re8 {[%clk
0:01:36.5]} 20. Bxc6 {[%clk 0:02:23.9]} 20... bxc6 {[%clk 0:01:33.5]} 21. Nf3
{[%clk 0:02:22.1]} 21... h6 {[%clk 0:01:22.7]} 22. Qa4 {[%clk 0:02:16.3]} 22...
Bf6 {[%clk 0:00:59.2]} 23. Qxc4 {[%clk 0:02:06.5]} 23... Rc8 {[%clk 0:00:45.2]}
24. O-O-O {[%clk 0:01:59.9]} 24... Bg5 {[%clk 0:00:29.3]} 25. Bxg5 {[%clk
0:01:57.9]} 25... hxg5 {[%clk 0:00:28.6]} 26. Ne5 {[%clk 0:01:45]} 26... Qf6
{[%clk 0:00:14.2]} 27. Nd7 {[%clk 0:01:22.8]} 27... Qxf2 {[%clk 0:00:02.9]} 28.
Qc2 {[%clk 0:01:01.9]} 1-0

[Event "Live Chess"]
[Site "Chess.com"]
[Date "2023.05.20"]
[Round "-"]
[White "Nico14021974"]
[Black "peter-785"]
[Result "0-1"]
[WhiteElo "994"]
[BlackElo "1151"]
[TimeControl "300"]
[EndTime "9:14:12 PDT"]
[Termination "peter-785 won by checkmate"]

1. e4 {[%clk 0:04:56.5]} 1... c5 {[%clk 0:04:57.5]} 2. c4 {[%clk 0:04:45.9]}
2... d6 {[%clk 0:04:55.9]} 3. d3 {[%clk 0:04:42.8]} 3... e6 {[%clk 0:04:51.9]}
4. Nc3 {[%clk 0:04:41]} 4... Nf6 {[%clk 0:04:50.7]} 5. Nf3 {[%clk 0:04:39.1]}
5... Be7 {[%clk 0:04:50]} 6. Bf4 {[%clk 0:04:32.6]} 6... O-O {[%clk 0:04:41.7]}
7. Be2 {[%clk 0:04:18.9]} 7... Nbd7 {[%clk 0:04:31.8]} 8. g3 {[%clk 0:04:06.8]}
8... b6 {[%clk 0:04:12]} 9. a3 {[%clk 0:04:05.1]} 9... Bb7 {[%clk 0:04:09.9]}
10. b4 {[%clk 0:04:03.6]} 10... cxb4 {[%clk 0:04:03.4]} 11. axb4 {[%clk
0:04:02.2]} 11... a6 {[%clk 0:03:48]} 12. b5 {[%clk 0:03:56.2]} 12... Qc7 {[%clk
0:03:14]} 13. d4 {[%clk 0:03:48.6]} 13... Rfd8 {[%clk 0:03:09.3]} 14. Qd2 {[%clk
0:03:42.8]} 14... Nf8 {[%clk 0:03:08]} 15. Rc1 {[%clk 0:03:36.5]} 15... Ng6
{[%clk 0:03:05.3]} 16. Be3 {[%clk 0:03:30.4]} 16... Nxe4 {[%clk 0:03:01.7]} 17.
Nxe4 {[%clk 0:03:28.9]} 17... Bxe4 {[%clk 0:03:00.5]} 18. Rg1 {[%clk 0:03:21]}
18... Rac8 {[%clk 0:02:47.7]} 19. Rc3 {[%clk 0:02:56.6]} 19... axb5 {[%clk
0:02:44]} 20. cxb5 {[%clk 0:02:54.5]} 20... Qb7 {[%clk 0:02:42.4]} 21. Rxc8
{[%clk 0:02:47.8]} 21... Rxc8 {[%clk 0:02:40.4]} 22. h4 {[%clk 0:02:37.2]} 22...
Bxf3 {[%clk 0:02:38.1]} 23. Bxf3 {[%clk 0:02:35.1]} 23... Qxf3 {[%clk
0:02:37.5]} 24. Bf4 {[%clk 0:02:18.7]} 24... Nxf4 {[%clk 0:02:33.2]} 25. gxf4
{[%clk 0:02:12.1]} 25... f5 {[%clk 0:02:23.8]} 26. Rg3 {[%clk 0:02:04]} 26...
Qe4+ {[%clk 0:02:20.1]} 27. Kf1 {[%clk 0:01:56]} 27... Qh1+ {[%clk 0:02:15.2]}
28. Ke2 {[%clk 0:01:51.5]} 28... Bxh4 {[%clk 0:02:11.7]} 29. Rf3 {[%clk
0:01:44]} 29... Qc1 {[%clk 0:02:01.2]} 30. Qxc1 {[%clk 0:01:42.2]} 30... Rxc1
{[%clk 0:01:59.4]} 31. Kd2 {[%clk 0:01:39.5]} 31... Rc8 {[%clk 0:01:51.3]} 32.
Rh3 {[%clk 0:01:32.7]} 32... Bf6 {[%clk 0:01:49]} 33. f3 {[%clk 0:01:27.2]}
33... h6 {[%clk 0:01:45]} 34. Ke1 {[%clk 0:01:21.1]} 34... Bxd4 {[%clk
0:01:43.1]} 35. Kd2 {[%clk 0:01:14.7]} 35... Bf6 {[%clk 0:01:37.9]} 36. Ke1
{[%clk 0:01:11]} 36... Rc5 {[%clk 0:01:37.3]} 37. Rh2 {[%clk 0:01:05.6]} 37...
Rxb5 {[%clk 0:01:34.5]} 38. Rc2 {[%clk 0:00:59.2]} 38... Rc5 {[%clk 0:01:33.2]}
39. Rd2 {[%clk 0:00:54.8]} 39... d5 {[%clk 0:01:31.7]} 40. Ke2 {[%clk
0:00:51.9]} 40... Kf7 {[%clk 0:01:29.5]} 41. Ra2 {[%clk 0:00:46]} 41... b5
{[%clk 0:01:27.1]} 42. Kd2 {[%clk 0:00:44.5]} 42... b4 {[%clk 0:01:20.9]} 43.
Ra1 {[%clk 0:00:43.1]} 43... Bxa1 {[%clk 0:01:16.8]} 44. Ke3 {[%clk 0:00:32.2]}
44... b3 {[%clk 0:01:15.2]} 45. Kd2 {[%clk 0:00:30.1]} 45... b2 {[%clk
0:01:11.9]} 46. Ke2 {[%clk 0:00:27.6]} 46... b1=Q {[%clk 0:01:08]} 47. Ke3
{[%clk 0:00:24.8]} 47... Qb3+ {[%clk 0:01:05.3]} 48. Kf2 {[%clk 0:00:23]} 48...
Rc2+ {[%clk 0:01:04.6]} 49. Kg3 {[%clk 0:00:21.3]} 49... Qb1 {[%clk 0:00:59.7]}
50. Kh3 {[%clk 0:00:20.2]} 50... Qf1+ {[%clk 0:00:56.8]} 51. Kh4 {[%clk
0:00:18.3]} 51... Rh2+ {[%clk 0:00:55.2]} 52. Kg3 {[%clk 0:00:17]} 52... Qg2#
{[%clk 0:00:53.4]} 0-1

[Event "Live Chess"]
[Site "Chess.com"]
[Date "2023.05.20"]
[Round "-"]
[White "Jio85"]
[Black "YrrriKharkiv"]
[Result "0-1"]
[WhiteElo "2033"]
[BlackElo "2142"]
[TimeControl "300"]
[EndTime "9:14:12 PDT"]
[Termination "YrrriKharkiv won by resignation"]

1. e4 {[%clk 0:04:59.2]} 1... e6 {[%clk 0:04:57.9]} 2. d4 {[%clk 0:04:57.3]}
2... d5 {[%clk 0:04:55.8]} 3. e5 {[%clk 0:04:56.6]} 3... c5 {[%clk 0:04:54.6]}
4. c3 {[%clk 0:04:55.7]} 4... Qa5 {[%clk 0:04:53]} 5. Nf3 {[%clk 0:04:44.7]}
5... cxd4 {[%clk 0:04:51.1]} 6. Nxd4 {[%clk 0:04:34.6]} 6... Nc6 {[%clk
0:04:48.9]} 7. Nxc6 {[%clk 0:04:24.8]} 7... bxc6 {[%clk 0:04:46.3]} 8. Qd3
{[%clk 0:04:16]} 8... Ne7 {[%clk 0:04:38]} 9. Nd2 {[%clk 0:04:08.8]} 9... Qc7
{[%clk 0:04:31.8]} 10. Nb3 {[%clk 0:04:05.4]} 10... Qxe5+ {[%clk 0:04:29.9]} 11.
Qe3 {[%clk 0:04:04]} 11... Qxe3+ {[%clk 0:04:28.6]} 0-1

[Event "Live Chess"]
[Site "Chess.com"]
[Date "2023.05.20"]
[Round "-"]
[White "ChunTang"]
[Black "AyannaTang"]
[Result "0-1"]
[WhiteElo "105"]
[BlackElo "179"]
[TimeControl "300"]
[EndTime "9:14:14 PDT"]
[Termination "AyannaTang won on time"]

1. e4 {[%clk 0:04:50.2]} 1... e5 {[%clk 0:04:57.5]} 2. Bc4 {[%clk 0:04:37.3]}
2... d5 {[%clk 0:04:51.7]} 3. Bxd5 {[%clk 0:04:31.4]} 3... Be6 {[%clk
0:04:46.3]} 4. Nc3 {[%clk 0:04:20.2]} 4... Bxd5 {[%clk 0:04:43.3]} 5. exd5
{[%clk 0:04:17.4]} 5... c6 {[%clk 0:04:38.1]} 6. Nf3 {[%clk 0:04:10.5]} 6...
cxd5 {[%clk 0:04:36.1]} 7. Nxd5 {[%clk 0:04:06.1]} 7... Qxd5 {[%clk 0:04:34.1]}
8. d4 {[%clk 0:03:55.7]} 8... exd4 {[%clk 0:04:27.6]} 9. Nxd4 {[%clk 0:03:49.7]}
9... Nc6 {[%clk 0:04:25.7]} 10. c3 {[%clk 0:03:44.6]} 10... Nxd4 {[%clk
0:04:21.7]} 11. cxd4 {[%clk 0:03:42.9]} 11... Bb4+ {[%clk 0:04:16.9]} 12. Ke2
{[%clk 0:02:58.6]} 12... Nf6 {[%clk 0:04:07.6]} 13. a3 {[%clk 0:02:56.6]} 13...
Bd6 {[%clk 0:03:56]} 14. Bg5 {[%clk 0:02:28.6]} 14... Qxg5 {[%clk 0:03:46.7]}
15. Re1 {[%clk 0:02:03.4]} 15... O-O {[%clk 0:03:38.1]} 16. Kf1 {[%clk
0:02:00.9]} 16... Rfe8 {[%clk 0:03:24.9]} 17. b4 {[%clk 0:01:34.7]} 17... Ng4
{[%clk 0:03:12.1]} 18. Rc1 {[%clk 0:01:31.1]} 18... Nxh2+ {[%clk 0:03:02.4]} 19.
Kg1 {[%clk 0:01:23.8]} 19... Qf4 {[%clk 0:02:18.9]} 20. d5 {[%clk 0:00:57.2]}
20... Rac8 {[%clk 0:01:56.8]} 21. Rxc8 {[%clk 0:00:38.8]} 21... Rxc8 {[%clk
0:01:53.2]} 22. b5 {[%clk 0:00:26.8]} 22... Bxa3 {[%clk 0:01:50.6]} 23. Qd3
{[%clk 0:00:19]} 23... Bb4 {[%clk 0:01:41.4]} 24. b6 {[%clk 0:00:12.8]} 24...
Bxe1 {[%clk 0:01:38.4]} 25. g3 {[%clk 0:00:04.9]} 25... Qa4 {[%clk 0:01:25.5]}
26. Qe2 {[%clk 0:00:04.1]} 26... Bc3 {[%clk 0:01:19.5]} 27. Qe3 {[%clk
0:00:02.6]} 27... axb6 {[%clk 0:01:13]} 28. d6 {[%clk 0:00:02.2]} 28... Bd4
{[%clk 0:01:06.9]} 29. Qd3 {[%clk 0:00:00.8]} 29... Qd7 {[%clk 0:01:02.1]} 0-1

[Event "Live Chess"]
[Site "Chess.com"]
[Date "2023.05.20"]
[Round "-"]
[White "RoaringKnights"]
[Black "M00nDr4g0n"]
[Result "1-0"]
[WhiteElo "918"]
[BlackElo "873"]
[TimeControl "300"]
[EndTime "9:14:17 PDT"]
[Termination "RoaringKnights won on time"]

1. d4 {[%clk 0:04:54.9]} 1... d6 {[%clk 0:04:58.4]} 2. Nf3 {[%clk 0:04:46.2]}
2... Nf6 {[%clk 0:04:57.2]} 3. Bf4 {[%clk 0:04:43.4]} 3... c6 {[%clk 0:04:47.5]}
4. e3 {[%clk 0:04:37.7]} 4... Qa5+ {[%clk 0:04:44.1]} 5. c3 {[%clk 0:04:34.4]}
5... Bf5 {[%clk 0:04:30]} 6. Bd3 {[%clk 0:04:27]} 6... Bxd3 {[%clk 0:04:22.5]}
7. Qxd3 {[%clk 0:04:23.5]} 7... Nbd7 {[%clk 0:04:13.8]} 8. Nbd2 {[%clk 0:04:20]}
8... g6 {[%clk 0:03:59.1]} 9. Nb3 {[%clk 0:04:16.7]} 9... Qc7 {[%clk 0:03:37.6]}
10. Rc1 {[%clk 0:04:04]} 10... Bg7 {[%clk 0:03:32.2]} 11. c4 {[%clk 0:03:52.9]}
11... O-O {[%clk 0:03:26.2]} 12. c5 {[%clk 0:03:51.3]} 12... dxc5 {[%clk
0:03:17.8]} 13. dxc5 {[%clk 0:03:32.1]} 13... Rad8 {[%clk 0:02:56.9]} 14. Bxc7
{[%clk 0:03:29]} 14... Rc8 {[%clk 0:02:51.5]} 15. Bg3 {[%clk 0:03:24]} 15... Nh5
{[%clk 0:02:39.3]} 16. Qxd7 {[%clk 0:03:16]} 16... Bxb2 {[%clk 0:02:31]} 17. Rc2
{[%clk 0:02:58.3]} 17... Ba3 {[%clk 0:02:12.8]} 18. Qxe7 {[%clk 0:02:45.2]}
18... b6 {[%clk 0:01:55.1]} 19. cxb6 {[%clk 0:02:39.7]} 19... Bxe7 {[%clk
0:01:51.1]} 20. bxa7 {[%clk 0:02:28.5]} 20... Ra8 {[%clk 0:01:48.8]} 21. Rxc6
{[%clk 0:02:26.7]} 21... Rxa7 {[%clk 0:01:44.5]} 22. Rc2 {[%clk 0:02:17.9]}
22... Bb4+ {[%clk 0:01:35.4]} 23. Nfd2 {[%clk 0:02:13.6]} 23... Rd8 {[%clk
0:01:13.3]} 24. O-O {[%clk 0:02:09.9]} 24... Rad7 {[%clk 0:01:00.3]} 25. Rd1
{[%clk 0:01:40.1]} 25... Nf6 {[%clk 0:00:47.5]} 26. Bh4 {[%clk 0:01:29.9]} 26...
Rd6 {[%clk 0:00:27.7]} 27. e4 {[%clk 0:01:14.9]} 27... Bxd2 {[%clk 0:00:20.5]}
28. Bxf6 {[%clk 0:01:07.5]} 28... Rxf6 {[%clk 0:00:17.8]} 29. Rcxd2 {[%clk
0:01:05.6]} 29... Re8 {[%clk 0:00:11.6]} 30. Rd8 {[%clk 0:01:03]} 30... Kf8
{[%clk 0:00:08.3]} 31. Rxe8+ {[%clk 0:01:01.7]} 31... Kxe8 {[%clk 0:00:06.7]}
32. e5 {[%clk 0:00:57.6]} 32... Re6 {[%clk 0:00:04]} 33. Re1 {[%clk 0:00:53.4]}
1-0

[Event "Live Chess"]
[Site "Chess.com"]
[Date "2023.05.20"]
[Round "-"]
[White "minenko-1958"]
[Black "zdanevych"]
[Result "0-1"]
[WhiteElo "1448"]
[BlackElo "1490"]
[TimeControl "300"]
[EndTime "9:14:23 PDT"]
[Termination "zdanevych won by resignation"]

1. e4 {[%clk 0:04:56.8]} 1... c5 {[%clk 0:04:59]} 2. Bc4 {[%clk 0:04:54.6]} 2...
e6 {[%clk 0:04:58]} 3. Nc3 {[%clk 0:04:52.1]} 3... Nf6 {[%clk 0:04:56.5]} 4. d3
{[%clk 0:04:50.7]} 4... d5 {[%clk 0:04:55.5]} 5. exd5 {[%clk 0:04:49.4]} 5...
exd5 {[%clk 0:04:55.4]} 6. Bb5+ {[%clk 0:04:48.1]} 6... Nc6 {[%clk 0:04:54.3]}
7. Bxc6+ {[%clk 0:04:45.8]} 7... bxc6 {[%clk 0:04:54.2]} 8. Bg5 {[%clk
0:04:43.3]} 8... Be7 {[%clk 0:04:53.1]} 9. Nf3 {[%clk 0:04:40.4]} 9... Bg4
{[%clk 0:04:50.9]} 10. h3 {[%clk 0:04:33.5]} 10... Bh5 {[%clk 0:04:49.6]} 11.
O-O {[%clk 0:04:31.8]} 11... O-O {[%clk 0:04:47.8]} 12. Re1 {[%clk 0:04:30.3]}
12... h6 {[%clk 0:04:45.9]} 13. Bh4 {[%clk 0:04:18.5]} 13... Re8 {[%clk
0:04:38.9]} 14. g4 {[%clk 0:04:06.8]} 14... Bg6 {[%clk 0:04:30.9]} 15. Kg2
{[%clk 0:04:05.1]} 15... Qd6 {[%clk 0:04:01.3]} 16. Bg3 {[%clk 0:04:03.1]} 16...
Qd7 {[%clk 0:03:55.2]} 17. Ne5 {[%clk 0:04:01.2]} 17... Qb7 {[%clk 0:03:49.3]}
18. b3 {[%clk 0:03:54.3]} 18... Bh7 {[%clk 0:03:45.2]} 19. Qf3 {[%clk
0:03:47.7]} 19... Bd6 {[%clk 0:03:31.9]} 20. Na4 {[%clk 0:03:31.5]} 20... Re6
{[%clk 0:03:20.1]} 21. Re2 {[%clk 0:03:20.9]} 21... Rae8 {[%clk 0:03:10.8]} 22.
Rae1 {[%clk 0:03:18.8]} 22... Qb4 {[%clk 0:02:48.2]} 23. c3 {[%clk 0:03:14]}
23... Qb7 {[%clk 0:02:38.4]} 24. h4 {[%clk 0:02:59.2]} 24... Qe7 {[%clk
0:02:31.8]} 25. Nxc6 {[%clk 0:02:46.1]} 25... Qd7 {[%clk 0:02:30.3]} 26. Ne5
{[%clk 0:02:42.3]} 26... Bxe5 {[%clk 0:02:28.3]} 27. Rxe5 {[%clk 0:02:40.2]}
27... Rxe5 {[%clk 0:02:26.1]} 28. Rxe5 {[%clk 0:02:36.8]} 28... Rxe5 {[%clk
0:02:24.1]} 29. Bxe5 {[%clk 0:02:35.5]} 29... Nxg4 {[%clk 0:02:16.5]} 30. Bg3
{[%clk 0:02:25.8]} 30... Nf6 {[%clk 0:02:04.7]} 31. Nxc5 {[%clk 0:02:23.9]}
31... Qb5 {[%clk 0:01:42.9]} 32. d4 {[%clk 0:02:17.3]} 32... Qa5 {[%clk
0:01:33.4]} 33. a4 {[%clk 0:02:12.6]} 33... Ne4 {[%clk 0:01:30.6]} 34. Nxe4
{[%clk 0:02:07.1]} 34... Bxe4 {[%clk 0:01:30.5]} 35. Qxe4 {[%clk 0:02:02.3]}
35... dxe4 {[%clk 0:01:30.4]} 36. b4 {[%clk 0:01:58]} 36... Qxa4 {[%clk
0:01:22.8]} 37. Bd6 {[%clk 0:01:52.3]} 37... Qc2 {[%clk 0:01:17.8]} 38. Bc5
{[%clk 0:01:48.8]} 38... a6 {[%clk 0:01:15.3]} 39. Kg3 {[%clk 0:01:47]} 39...
Qxc3+ {[%clk 0:01:14.4]} 40. Kg2 {[%clk 0:01:43.6]} 40... e3 {[%clk 0:01:11.2]}
41. fxe3 {[%clk 0:01:41.8]} 41... Qxe3 {[%clk 0:01:11.1]} 42. h5 {[%clk
0:01:39.5]} 42... Qg5+ {[%clk 0:01:08.9]} 43. Kf3 {[%clk 0:01:37.2]} 43... Qxh5+
{[%clk 0:01:08.8]} 44. Ke4 {[%clk 0:01:36]} 44... Qh1+ {[%clk 0:01:06.4]} 45.
Ke5 {[%clk 0:01:33.7]} 45... f6+ {[%clk 0:01:03.3]} 46. Ke6 {[%clk 0:01:31.5]}
46... Qc6+ {[%clk 0:01:01.5]} 47. Kf5 {[%clk 0:01:28.6]} 47... Kf7 {[%clk
0:00:59.6]} 48. Kf4 {[%clk 0:01:26.1]} 48... Ke6 {[%clk 0:00:55.5]} 49. Ke3
{[%clk 0:01:23.7]} 49... g5 {[%clk 0:00:53.8]} 50. Kd3 {[%clk 0:01:21.1]} 50...
f5 {[%clk 0:00:52.7]} 51. Ke3 {[%clk 0:01:18.2]} 51... Kd5 {[%clk 0:00:52]} 52.
Kd3 {[%clk 0:01:16.3]} 52... Qb5+ {[%clk 0:00:51.4]} 53. Kc3 {[%clk 0:01:14.9]}
53... a5 {[%clk 0:00:50.8]} 54. bxa5 {[%clk 0:01:13.1]} 54... Qxa5+ {[%clk
0:00:50.7]} 55. Bb4 {[%clk 0:01:11.6]} 55... Qc7+ {[%clk 0:00:48.7]} 56. Bc5
{[%clk 0:01:10.2]} 56... f4 {[%clk 0:00:44]} 57. Kd3 {[%clk 0:01:08.7]} 57... g4
{[%clk 0:00:43]} 58. Bf8 {[%clk 0:01:04.5]} 58... h5 {[%clk 0:00:42]} 59. Bg7
{[%clk 0:01:03.1]} 59... h4 {[%clk 0:00:40]} 60. Be5 {[%clk 0:01:01.8]} 60...
Qf7 {[%clk 0:00:38.4]} 61. Ke2 {[%clk 0:00:59.9]} 61... f3+ {[%clk 0:00:37.8]}
62. Kf2 {[%clk 0:00:58.9]} 62... Ke4 {[%clk 0:00:36.3]} 63. Bb8 {[%clk
0:00:53.2]} 63... g3+ {[%clk 0:00:35.4]} 64. Kf1 {[%clk 0:00:50.6]} 64... Ke3
{[%clk 0:00:34.5]} 65. Be5 {[%clk 0:00:47.2]} 65... Qb3 {[%clk 0:00:33.9]} 0-1

[Event "Live Chess"]
[Site "Chess.com"]
[Date "2023.05.20"]
[Round "-"]
[White "akp42"]
[Black "PureMellowPlan"]
[Result "1-0"]
[WhiteElo "1981"]
[BlackElo "597"]
[TimeControl "300"]
[EndTime "9:14:23 PDT"]
[Termination "akp42 won by checkmate"]

1. e4 {[%clk 0:04:58.4]} 1... e5 {[%clk 0:04:58.5]} 2. Nf3 {[%clk 0:04:56.5]}
2... Nc6 {[%clk 0:04:56.1]} 3. d4 {[%clk 0:04:55.1]} 3... exd4 {[%clk
0:04:53.4]} 4. Nxd4 {[%clk 0:04:53.8]} 4... Nxd4 {[%clk 0:04:52.4]} 5. Qxd4
{[%clk 0:04:52.3]} 5... Nf6 {[%clk 0:04:51]} 6. Bd3 {[%clk 0:04:49]} 6... d5
{[%clk 0:04:49]} 7. e5 {[%clk 0:04:46.1]} 7... Nd7 {[%clk 0:04:46.2]} 8. O-O
{[%clk 0:04:44]} 8... f6 {[%clk 0:04:42.8]} 9. Qxd5 {[%clk 0:04:29.2]} 9... Nxe5
{[%clk 0:04:34.6]} 10. Re1 {[%clk 0:04:27.7]} 10... Qxd5 {[%clk 0:04:28.4]} 11.
Nc3 {[%clk 0:04:18.5]} 11... Qc6 {[%clk 0:04:19.8]} 12. f4 {[%clk 0:04:17.1]}
12... Bd6 {[%clk 0:04:14.1]} 13. fxe5 {[%clk 0:04:15.7]} 13... Bxe5 {[%clk
0:04:12.9]} 14. Bb5 {[%clk 0:04:12]} 14... Bd7 {[%clk 0:04:08.6]} 15. Bxc6
{[%clk 0:04:08.4]} 15... Bxc6 {[%clk 0:04:07.8]} 16. Bf4 {[%clk 0:04:06.1]}
16... O-O {[%clk 0:04:05.3]} 17. Bxe5 {[%clk 0:04:04.9]} 17... fxe5 {[%clk
0:04:04.4]} 18. Rxe5 {[%clk 0:04:03.8]} 18... Rae8 {[%clk 0:04:02.8]} 19. Rae1
{[%clk 0:04:01.7]} 19... Rxe5 {[%clk 0:04:01.3]} 20. Rxe5 {[%clk 0:04:00.3]}
20... h6 {[%clk 0:03:54.1]} 21. Re7 {[%clk 0:03:55.6]} 21... Rf7 {[%clk
0:03:49.3]} 22. Rxf7 {[%clk 0:03:54.7]} 22... Kxf7 {[%clk 0:03:48.1]} 23. Kf2
{[%clk 0:03:54.4]} 23... Kf6 {[%clk 0:03:47.2]} 24. g3 {[%clk 0:03:54.1]} 24...
Kf5 {[%clk 0:03:46.5]} 25. Ke3 {[%clk 0:03:53.3]} 25... g6 {[%clk 0:03:45.8]}
26. Ne2 {[%clk 0:03:51.5]} 26... g5 {[%clk 0:03:44.8]} 27. Nd4+ {[%clk
0:03:50.3]} 27... Ke5 {[%clk 0:03:42]} 28. Nxc6+ {[%clk 0:03:49]} 28... bxc6
{[%clk 0:03:40.7]} 29. h3 {[%clk 0:03:47.2]} 29... Kf5 {[%clk 0:03:39.6]} 30.
Kd4 {[%clk 0:03:44.8]} 30... g4 {[%clk 0:03:38.9]} 31. h4 {[%clk 0:03:43.3]}
31... h5 {[%clk 0:03:35.8]} 32. b4 {[%clk 0:03:39.9]} 32... c5+ {[%clk
0:03:27.5]} 33. bxc5 {[%clk 0:03:37.6]} 33... Kg6 {[%clk 0:03:25.4]} 34. Ke5
{[%clk 0:03:36]} 34... a6 {[%clk 0:03:23.3]} 35. c6 {[%clk 0:03:35]} 35... a5
{[%clk 0:03:22.3]} 36. Ke6 {[%clk 0:03:33]} 36... a4 {[%clk 0:03:21.5]} 37. Kd7
{[%clk 0:03:27.8]} 37... Kf5 {[%clk 0:03:19.4]} 38. Kxc7 {[%clk 0:03:27]} 38...
Ke4 {[%clk 0:03:17.6]} 39. Kb7 {[%clk 0:03:26]} 39... Kf3 {[%clk 0:03:16.9]} 40.
c7 {[%clk 0:03:24.8]} 40... Kxg3 {[%clk 0:03:16.2]} 41. c8=Q {[%clk 0:03:23.5]}
41... Kh2 {[%clk 0:03:14.7]} 42. Qh8 {[%clk 0:03:19]} 42... g3 {[%clk
0:03:13.6]} 43. Qxh5 {[%clk 0:03:17.9]} 43... g2 {[%clk 0:03:12.7]} 44. Qg4
{[%clk 0:03:16.3]} 44... g1=Q {[%clk 0:03:10.8]} 45. Qxg1+ {[%clk 0:03:15.2]}
45... Kxg1 {[%clk 0:03:09.9]} 46. h5 {[%clk 0:03:13.9]} 46... Kg2 {[%clk
0:03:09.2]} 47. h6 {[%clk 0:03:13.1]} 47... Kf2 {[%clk 0:03:08.7]} 48. h7 {[%clk
0:03:12.4]} 48... Ke2 {[%clk 0:03:08.2]} 49. h8=Q {[%clk 0:03:11.4]} 49... Kd2
{[%clk 0:03:07.6]} 50. Qb2 {[%clk 0:03:09.9]} 50... Kd1 {[%clk 0:03:06.7]} 51.
c4 {[%clk 0:03:08.7]} 51... Ke1 {[%clk 0:03:04.5]} 52. c5 {[%clk 0:03:07.8]}
52... Kd1 {[%clk 0:03:03.8]} 53. c6 {[%clk 0:03:07.1]} 53... Ke1 {[%clk
0:03:02.8]} 54. c7 {[%clk 0:03:06.8]} 54... Kd1 {[%clk 0:03:02.1]} 55. c8=Q
{[%clk 0:03:06]} 55... Ke1 {[%clk 0:03:00.8]} 56. Qcc1# {[%clk 0:03:05]} 1-0